fUSD/lending_fUSD_20250225
["ID","MTS","AMOUNT","RATE_DAILY","PERIOD"]
[354384107,1740468702651,-822.2,0.00055342,120]
[354384108,1740468702661,-500.0,0.00055342,120]
[354384109,1740468702671,-500.0,0.00055342,120]
[354384110,1740468702680,-500.0,0.00055342,120]
[354384111,1740468702689,-500.0,0.00055342,120]
[354384112,1740468702698,-500.0,0.00055342,120]
[354384113,1740468702707,-500.0,0.00055342,120]
[354384114,1740468702716,-500.0,0.00055342,120]
[354384115,1740468702726,-543.16,0.00055342,120]
[354384116,1740468702735,-500.0,0.00055342,120]
[354384117,1740468702745,-1571.07,0.00055342,120]
[354384118,1740468702754,-500.0,0.00055342,120]
[354384119,1740468702764,-500.0,0.00055342,120]
[354384120,1740468702774,-848.24,0.00055342,120]
[354384121,1740468702783,-500.0,0.00055342,120]
[354384122,1740468702792,-943.15,0.00055342,120]
[354384123,1740468702802,-500.0,0.00055342,120]
[354384124,1740468702811,-500.0,0.00055342,120]
[354384125,1740468702821,-500.0,0.00055342,120]
[354384126,1740468702830,-1168.63,0.00055342,120]
[354384127,1740468702839,-500.0,0.00055342,120]
[354384128,1740468702849,-500.0,0.00055342,120]
[354384129,1740468702858,-501.86634783,0.00055342,120]
[354384130,1740468702868,-528.45087975,0.00055342,120]
[354384131,1740468702877,-500.0,0.00055342,120]
[354384132,1740468702887,-500.0,0.00055342,120]
[354384133,1740468702897,-500.0,0.00055342,120]
[354384134,1740468702907,-500.0,0.00055342,120]
[354384135,1740468702916,-500.0,0.00055342,120]
[354384136,1740468702926,-500.0,0.00055342,120]
[354384137,1740468702936,-500.0,0.00055342,120]
[354384138,1740468702946,-517.51,0.00055342,120]
[354384139,1740468702955,-500.0,0.00055342,120]
[354384140,1740468702965,-500.0,0.00055342,120]
[354384141,1740468702974,-951.32,0.00055342,120]
[354384142,1740468702983,-500.0,0.00055342,120]
[354384143,1740468702993,-2000.0,0.00055342,30]
[354384144,1740468703003,-512.13902712,0.00055342,120]
[354384145,1740468703013,-500.0,0.00055342,120]
[354384146,1740468703023,-500.0,0.00055342,120]
[354384147,1740468703034,-501.98052638,0.00055342,120]
[354384148,1740468703048,-500.0,0.00055342,120]
[354384149,1740468703059,-500.0,0.00055342,120]
[354384150,1740468703070,-500.0,0.00055342,120]
[354384151,1740468703083,-777.26,0.00055342,120]
[354384152,1740468703094,-500.0,0.00055342,120]
[354384153,1740468703106,-500.0,0.00055342,120]
[354384154,1740468703116,-500.0,0.00055342,120]
[354384155,1740468703127,-527.11982254,0.00055342,120]
[354384156,1740468703137,-500.0,0.00055342,120]
[354384157,1740468703146,-500.0,0.00055342,120]
[354384158,1740468703155,-500.0,0.00055342,120]
[354384159,1740468703164,-500.0,0.00055342,120]
[354384160,1740468703173,-560.94,0.00055342,120]
[354384161,1740468703182,-417.24227732,0.00055342,120]
[354384162,1740468703191,-500.0,0.00055342,120]
[354384163,1740468703209,-500.0,0.00055342,120]
[354384164,1740468703219,-500.0,0.00055342,7]
[354384165,1740468703228,-500.0,0.00055342,120]
[354384166,1740468703238,-501.91302051,0.00055342,120]
[354384167,1740468703247,-500.0,0.00055342,120]
[354384168,1740468703256,-502.09754518,0.00055342,120]
[354384169,1740468703266,-500.0,0.00055342,120]
[354384170,1740468703276,-404.43,0.00055342,7]
[354384171,1740468703285,-500.0,0.00055342,120]
[354384172,1740468703297,-1128.12,0.00055342,120]
[354384173,1740468703307,-500.0,0.00055342,120]
[354384174,1740468703317,-502.13748276,0.00055342,120]
[354384175,1740468703327,-505.74514168,0.00055342,120]
[354384176,1740468703337,-500.0,0.00055342,120]
[354384177,1740468703347,-500.0,0.00055342,120]
[354384178,1740468703357,-500.0,0.00055342,120]
[354384179,1740468703367,-500.0,0.00055342,120]
[354384180,1740468703376,-610.79,0.00055342,120]
[354384181,1740468703386,-630.83,0.00055342,120]
[354384182,1740468703396,-500.0,0.00055342,120]
[354384183,1740468703406,-500.0,0.00055342,120]
[354384184,1740468703416,-500.0,0.00055342,120]
[354384185,1740468703425,-500.0,0.00055342,120]
[354384186,1740468703436,-500.0,0.00055342,120]
[354384187,1740468703445,-513.44486989,0.00055342,120]
[354384188,1740468703455,-500.0,0.00055342,120]
[354384189,1740468703464,-500.0,0.00055342,120]
[354384190,1740468703474,-500.0,0.00055342,120]
[354384191,1740468703485,-492.83335914,0.00055342,120]
[354384192,1740468703495,-500.0,0.00055342,120]
[354384193,1740468703505,-500.0,0.00055342,120]
[354384194,1740468703514,-641.8,0.00055342,120]
[354384195,1740468703524,-500.0,0.00055342,120]
[354384196,1740468703534,-509.50984657,0.00055342,120]
[354384197,1740468703546,-506.90907432,0.00055342,120]
[354384198,1740468703555,-500.0,0.00055342,120]
[354384199,1740468703564,-500.0,0.00055342,120]
[354384200,1740468703574,-500.0,0.00055342,120]
[354384201,1740468703584,-1736.97,0.00055342,120]
[354384202,1740468703594,-500.0,0.00055342,120]
[354384203,1740468703604,-500.0,0.00055342,120]
[354384204,1740468703614,-500.0,0.00055342,120]
[354384205,1740468703624,-551.92,0.00055342,120]
[354384206,1740468703634,-829.97,0.00055342,120]
[354384207,1740468703644,-500.0,0.00055342,120]
[354384208,1740468703653,-1884.67,0.00055342,120]
[354384209,1740468703822,-1959.02,0.00055342,120]
[354384210,1740468703833,-687.65,0.00055342,120]
[354384211,1740468703842,-500.0,0.00055342,120]
[354384212,1740468703851,-239.67297498,0.00055342,28]
[354384213,1740468703860,-509.28796274,0.00055342,120]
[354384214,1740468703870,-500.0,0.00055342,120]
[354384215,1740468703879,-1049.16,0.00055342,120]
[354384216,1740468703888,-500.0,0.00055342,120]
[354384217,1740468703898,-500.0,0.00055342,120]
[354384218,1740468703907,-503.51050115,0.00055342,120]
[354384219,1740468703917,-500.0,0.00055342,120]
[354384220,1740468703926,-500.0,0.00055342,120]
[354384221,1740468703936,-500.0,0.00055342,120]
[354384222,1740468703946,-500.0,0.00055342,120]
[354384223,1740468703956,-500.0,0.00055342,120]
[354384224,1740468703966,-416.03434396,0.00055342,120]
[354384225,1740468703977,-500.0,0.00055342,120]
[354384226,1740468703986,-500.0,0.00055342,120]
[354384227,1740468703996,-500.0,0.00055342,120]
[354384228,1740468704006,-500.0,0.00055342,120]
[354384229,1740468704016,-500.0,0.00055342,120]
[354384230,1740468704026,-500.0,0.00055342,120]
[354384231,1740468704036,-500.0,0.00055342,120]
[354384232,1740468704049,-910.65,0.00055342,120]
[354384233,1740468704060,-500.0,0.00055342,120]
[354384234,1740468704072,-500.0,0.00055342,120]
[354384235,1740468704083,-500.0,0.00055342,120]
[354384236,1740468704095,-500.0,0.00055342,120]
[354384237,1740468704105,-502.32580645,0.00055342,2]
[354384238,1740468704117,-500.0,0.00055342,120]
[354384239,1740468704127,-500.0,0.00055342,120]
[354384240,1740468704137,-500.0,0.00055342,120]
[354384241,1740468704147,-500.0,0.00055342,120]
[354384242,1740468704158,-500.0,0.00055342,120]
[354384243,1740468704168,-500.0,0.00055342,120]
[354384244,1740468704180,-1220.8,0.00055342,120]
[354384245,1740468704191,-500.0,0.00055342,120]
[354384246,1740468704201,-500.0,0.00055342,120]
[354384247,1740468704212,-500.0,0.00055342,120]
[354384248,1740468704222,-500.0,0.00055342,120]
[354384249,1740468704233,-500.0,0.00055342,120]
[354384250,1740468704243,-500.0,0.00055342,120]
[354384251,1740468704255,-500.0,0.00055342,2]
[354384252,1740468704265,-516.07669873,0.00055342,120]
[354384253,1740468704276,-500.0,0.00055342,120]
[354384254,1740468704286,-500.0,0.00055342,120]
[354384255,1740468704300,-616.13075151,0.00055342,120]
[354384256,1740468704312,-522.31,0.00055342,120]
[354384257,1740468704323,-500.0,0.00055342,120]
[354384258,1740468704333,-1188.98,0.00055342,120]
[354384259,1740468704344,-526.28,0.00055342,120]
[354384260,1740468704354,-510.72267762,0.00055342,120]
[354384261,1740468704365,-542.74921003,0.00055342,120]
[354384262,1740468704375,-1040.34,0.00055342,120]
[354384263,1740468704385,-724.24,0.00055342,120]
[354384264,1740468704395,-500.0,0.00055342,120]
[354384265,1740468704405,-500.0,0.00055342,120]
[354384266,1740468704415,-503.5887962,0.00055342,120]
[354384267,1740468704425,-500.0,0.00055342,120]
[354384268,1740468704435,-500.0,0.00055342,120]
[354384269,1740468704445,-1422.51,0.00055342,120]
[354384270,1740468704456,-500.0,0.00055342,120]
[354384271,1740468704465,-500.0,0.00055342,120]
[354384272,1740468704475,-500.0,0.00055342,120]
[354384273,1740468704485,-500.0,0.00055342,120]
[354384274,1740468704495,-500.0,0.00055342,120]
[354384275,1740468704505,-1615.65,0.00055342,120]
[354384276,1740468704514,-992.42,0.00055342,20]
[354384277,1740468704524,-500.0,0.00055342,120]
[354384278,1740468704534,-901.44,0.00055342,120]
[354384279,1740468704548,-500.0,0.00055342,120]
[354384280,1740468704558,-816.88,0.00055342,120]
[354384281,1740468704568,-508.58595708,0.00055342,120]
[354384282,1740468704579,-500.0,0.00055342,120]
[354384283,1740468704589,-500.0,0.00055342,120]
[354384284,1740468704599,-500.0,0.00055342,120]
[354384285,1740468704609,-955.28,0.00055342,120]
[354384286,1740468704620,-500.0,0.00055342,120]
[354384287,1740468704629,-671.92,0.00055342,120]
[354384288,1740468704640,-500.0,0.00055342,120]
[354384289,1740468704650,-500.0,0.00055342,120]
[354384290,1740468704660,-507.04086711,0.00055342,120]
[354384291,1740468704671,-507.29518698,0.00055342,120]
[354384292,1740468704681,-500.0,0.00055342,120]
[354384293,1740468704690,-1525.72,0.00055342,120]
[354384294,1740468704700,-500.0,0.00055342,120]
[354384295,1740468704709,-500.0,0.00055342,40]
[354384296,1740468704719,-500.0,0.00055342,120]
[354384297,1740468704729,-1437.76,0.00055342,120]
[354384298,1740468704738,-500.0,0.00055342,120]
[354384299,1740468704748,-346.7405624,0.00055342,120]
[354384300,1740468704758,-500.0,0.00055342,120]
[354384301,1740468704768,-500.0,0.00055342,120]
[354384302,1740468704779,-1132.0,0.00055342,120]
[354384303,1740468704790,-500.0,0.00055342,120]
[354384304,1740468704802,-1768.38,0.00055342,120]
[354384305,1740468704813,-872.14,0.00055342,120]
[354384306,1740468704822,-500.0,0.00055342,120]
[354384307,1740468704832,-1405.94,0.00055342,120]
[354384308,1740468704842,-500.0,0.00055342,120]
[354384309,1740468704852,-500.0,0.00055342,120]
[354384310,1740468704862,-500.0,0.00055342,120]
[354384311,1740468704872,-500.0,0.00055342,120]
[354384312,1740468704883,-500.0,0.00055342,120]
[354384313,1740468704893,-745.77,0.00055342,120]
[354384314,1740468704904,-1000.0,0.00055342,120]
[354384315,1740468704915,-352.32297774,0.00055342,120]
[354384316,1740468704926,-500.0,0.00055342,120]
[354384317,1740468704937,-820.25,0.00055342,120]
[354384318,1740468704948,-510.94916016,0.00055342,120]
[354384319,1740468704960,-500.0,0.00055342,120]
[354384320,1740468704971,-778.18,0.00055342,120]
[354384321,1740468704982,-500.0,0.00055342,120]
[354384322,1740468704993,-500.0,0.00055342,120]
[354384323,1740468705004,-505.95685148,0.00055342,120]
[354384324,1740468705015,-618.03,0.00055342,120]
[354384325,1740468705026,-500.0,0.00055342,120]
[354384326,1740468705037,-538.57,0.00055342,120]
[354384327,1740468705054,-813.45,0.00055342,120]
[354384328,1740468705064,-501.26232019,0.00055342,120]
[354384329,1740468705078,-500.0,0.00055342,120]
[354384330,1740468705089,-659.87,0.00055342,120]
[354384331,1740468705099,-1790.29,0.00055342,120]
[354384332,1740468705113,-500.0,0.00055342,120]
[354384333,1740468705125,-500.0,0.00055342,120]
[354384334,1740468705137,-542.24,0.00055342,120]
[354384335,1740468705148,-500.0,0.00055342,120]
[354384336,1740468705158,-1379.17,0.00055342,120]
[354384337,1740468705168,-505.10946316,0.00055342,120]
[354384338,1740468705179,-500.0,0.00055342,120]
[354384339,1740468705190,-500.0,0.00055342,120]
[354384340,1740468705199,-500.0,0.00055342,120]
[354384341,1740468705210,-500.0,0.00055342,120]
[354384342,1740468705219,-500.0,0.00055342,120]
[354384343,1740468705229,-817.76,0.00055342,120]
[354384344,1740468705239,-1159.57,0.00055342,120]
[354384345,1740468705248,-500.0,0.00055342,120]
[354384346,1740468705258,-500.0,0.00055342,120]
[354384347,1740468705267,-500.0,0.00055342,120]
[354384348,1740468705277,-500.0,0.00055342,120]
[354384349,1740468705286,-500.0,0.00055342,120]
[354384350,1740468705298,-672.91,0.00055342,120]
[354384351,1740468705308,-500.0,0.00055342,120]
[354384352,1740468705317,-1035.42,0.00055342,120]
[354384353,1740468705327,-1067.5,0.00055342,120]
[354384354,1740468705337,-500.0,0.00055342,120]
[354384355,1740468705347,-911.5,0.00055342,120]
[354384356,1740468705357,-510.18559745,0.00055342,120]
[354384357,1740468705367,-782.71,0.00055342,120]
[354384358,1740468705378,-500.0,0.00055342,120]
[354384359,1740468705388,-500.0,0.00055342,120]
[354384360,1740468705399,-500.0,0.00055342,120]
[354384361,1740468705410,-692.81,0.00055342,120]
[354384362,1740468705420,-500.0,0.00055342,120]
[354384363,1740468705432,-1417.28,0.00055342,120]
[354384364,1740468705442,-500.0,0.00055342,120]
[354384365,1740468705452,-4827.95,0.00055342,120]
[354384366,1740468705462,-500.0,0.00055342,120]
[354384367,1740468705472,-907.1,0.00055342,120]
[354384368,1740468705485,-1025.54,0.00055342,120]
[354384369,1740468705495,-500.0,0.00055342,120]
[354384370,1740468705504,-500.0,0.00055342,120]
[354384371,1740468705514,-500.0,0.00055342,120]
[354384372,1740468705524,-972.52,0.00055342,120]
[354384373,1740468705534,-505.92985207,0.00055342,120]
[354384374,1740468705548,-1147.6,0.00055342,120]
[354384375,1740468705558,-500.0,0.00055342,120]
[354384376,1740468705569,-954.71,0.00055342,120]
[354384377,1740468705579,-500.0,0.00055342,120]
[354384378,1740468705589,-927.58,0.00055342,120]
[354384379,1740468705600,-500.0,0.00055342,120]
[354384380,1740468705609,-508.53,0.00055342,120]
[354384381,1740468705619,-500.0,0.00055342,120]
[354384382,1740468705629,-500.0,0.00055342,120]
[354384383,1740468705639,-1526.64,0.00055342,120]
[354384384,1740468705650,-514.38193189,0.00055342,120]
[354384385,1740468705660,-500.0,0.00055342,120]
[354384386,1740468705669,-500.0,0.00055342,120]
[354384387,1740468705680,-500.0,0.00055342,120]
[354384388,1740468705691,-1242.39,0.00055342,120]
[354384389,1740468705701,-1600.52,0.00055342,120]
[354384390,1740468705711,-500.0,0.00055342,120]
[354384391,1740468705721,-871.61,0.00055342,120]
[354384392,1740468705731,-549.43,0.00055342,120]
[354384393,1740468705741,-504.07102754,0.00055342,120]
[354384394,1740468705751,-500.0,0.00055342,120]
[354384395,1740468705761,-500.0,0.00055342,120]
[354384396,1740468705772,-1142.54,0.00055342,120]
[354384397,1740468705782,-500.0,0.00055342,120]
[354384398,1740468705795,-552.98,0.00055342,120]
[354384399,1740468705805,-1401.97,0.00055342,120]
[354384400,1740468705816,-1245.93,0.00055342,120]
[354384401,1740468705828,-500.0,0.00055342,120]
[354384402,1740468705840,-500.0,0.00055342,120]
[354384403,1740468705851,-1200.36,0.00055342,120]
[354384404,1740468705862,-508.17755001,0.00055342,120]
[354384405,1740468705873,-500.0,0.00055342,120]
[354384406,1740468705884,-500.0,0.00055342,30]
[354384407,1740468705895,-500.0,0.00055342,120]
[354384408,1740468705905,-500.0,0.00055342,120]
[354384409,1740468705916,-504.05,0.00055342,120]
[354384410,1740468705927,-971.46,0.00055342,120]
[354384411,1740468705938,-500.0,0.00055342,120]
[354384412,1740468705948,-500.0,0.00055342,120]
[354384413,1740468705960,-500.0,0.00055342,120]
[354384414,1740468705970,-516.00851391,0.00055342,120]
[354384415,1740468705981,-503.63705448,0.00055342,120]
[354384416,1740468706196,-500.0,0.00055342,120]
[354384417,1740468706207,-498.49548242,0.00055342,120]
[354384418,1740468706218,-500.0,0.00055342,120]
[354384419,1740468706228,-377.6965013,0.00055342,120]
[354384420,1740468706239,-506.28728645,0.00055342,120]
[354384421,1740468706249,-500.0,0.00055342,120]
[354384422,1740468706259,-500.0,0.00055342,120]
[354384423,1740468706270,-599.74,0.00055342,120]
[354384424,1740468706280,-265.1712417,0.00055342,120]
[354384425,1740468706290,-500.0,0.00055342,120]
[354384426,1740468706306,-515.75,0.00055342,120]
[354384427,1740468706317,-500.0,0.00055342,120]
[354384428,1740468706327,-1301.53,0.00055342,120]
[354384429,1740468706337,-509.1274931,0.00055342,120]
[354384430,1740468706347,-500.0,0.00055342,120]
[354384431,1740468706356,-500.0,0.00055342,120]
[354384432,1740468706366,-500.0,0.00055342,120]
[354384433,1740468706376,-500.0,0.00055342,120]
[354384434,1740468706386,-1377.93,0.00055342,120]
[354384435,1740468706396,-500.0,0.00055342,120]
[354384436,1740468706406,-500.0,0.00055342,120]
[354384437,1740468706415,-519.39,0.00055342,120]
[354384438,1740468706425,-623.61,0.00055342,120]
[354384439,1740468706435,-507.69032548,0.00055342,120]
[354384440,1740468706444,-1303.38,0.00055342,120]
[354384441,1740468706454,-500.0,0.00055342,120]
[354384442,1740468706463,-500.0,0.00055342,120]
[354384443,1740468706473,-516.46395247,0.00055342,120]
[354384444,1740468706641,-500.0,0.00055342,120]
[354384445,1740468706651,-500.0,0.00055342,120]
[354384446,1740468706661,-500.0,0.00055342,120]
[354384447,1740468706672,-585.47,0.00055342,120]
[354384448,1740468706682,-500.0,0.00055342,120]
[354384449,1740468706691,-552.97,0.00055342,120]
[354384450,1740468706701,-1349.4,0.00055342,120]
[354384451,1740468706711,-500.0,0.00055342,120]
[354384452,1740468706720,-507.42241544,0.00055342,120]
[354384453,1740468706730,-741.84,0.00055342,120]
[354384454,1740468706739,-505.31102233,0.00055342,120]
[354384455,1740468706749,-500.0,0.00055342,120]
[354384456,1740468706758,-500.0,0.00055342,120]
[354384457,1740468706768,-500.0,0.00055342,120]
[354384458,1740468706778,-700.58,0.00055342,2]
[354384459,1740468706787,-2351.09,0.00055342,2]
[354384460,1740468706798,-500.0,0.00055342,120]
[354384461,1740468706808,-500.0,0.00055342,120]
[354384462,1740468706818,-500.0,0.00055342,120]
[354384463,1740468706827,-500.0,0.00055342,120]
[354384464,1740468706836,-994.98,0.00055342,30]
[354384465,1740468706846,-500.0,0.00055342,120]
[354384466,1740468706856,-500.0,0.00055342,120]
[354384467,1740468706865,-500.0,0.00055342,120]
[354384468,1740468706874,-500.0,0.00055342,120]
[354384469,1740468706884,-500.0,0.00055342,120]
[354384470,1740468706893,-715.33,0.00055342,120]
[354384471,1740468706902,-363.73233466,0.00055342,120]
[354384472,1740468706911,-505.02515831,0.00055342,120]
[354384473,1740468706920,-1439.89,0.00055342,120]
[354384474,1740468706929,-500.0,0.00055342,120]
[354384475,1740468706939,-943.25,0.00055342,120]
[354384476,1740468706948,-500.0,0.00055342,120]
[354384477,1740468706958,-505.89131588,0.00055342,120]
[354384478,1740468706968,-657.52,0.00055342,120]
[354384479,1740468706978,-500.0,0.00055342,120]
[354384480,1740468706987,-500.0,0.00055342,120]
[354384481,1740468706996,-523.79,0.00055342,120]
[354384482,1740468707005,-500.0,0.00055342,120]
[354384483,1740468707015,-500.0,0.00055342,120]
[354384484,1740468707024,-1664.27,0.00055342,120]
[354384485,1740468707034,-943.64,0.00055342,120]
[354384486,1740468707045,-508.31458948,0.00055342,120]
[354384487,1740468707055,-516.4,0.00055342,120]
[354384488,1740468707064,-500.0,0.00055342,120]
[354384489,1740468707075,-500.0,0.00055342,120]
[354384490,1740468707084,-712.11,0.00055342,120]
[354384491,1740468707094,-500.0,0.00055342,120]
[354384492,1740468707104,-500.0,0.00055342,120]
[354384493,1740468707118,-500.0,0.00055342,120]
[354384494,1740468707128,-500.0,0.00055342,120]
[354384495,1740468707137,-509.15531936,0.00055342,120]
[354384496,1740468707148,-888.35,0.00055342,120]
[354384497,1740468707158,-500.0,0.00055342,120]
[354384498,1740468707168,-500.0,0.00055342,120]
[354384499,1740468707178,-500.0,0.00055342,120]
[354384500,1740468707188,-522.22,0.00055342,120]
[354384501,1740468707199,-1032.87,0.00055342,120]
[354384502,1740468707209,-500.0,0.00055342,120]
[354384503,1740468707219,-510.70513549,0.00055342,120]
[354384504,1740468707228,-500.0,0.00055342,120]
[354384505,1740468707238,-1438.9,0.00055342,120]
[354384506,1740468707248,-510.69547378,0.00055342,120]
[354384507,1740468707258,-570.8,0.00055342,120]
[354384508,1740468707267,-500.0,0.00055342,120]
[354384509,1740468707276,-815.66,0.00055342,120]
[354384510,1740468707285,-500.0,0.00055342,120]
[354384511,1740468707299,-500.0,0.00055342,120]
[354384512,1740468707309,-500.0,0.00055342,120]
[354384513,1740468707319,-1275.45,0.00055342,120]
[354384514,1740468707329,-500.0,0.00055342,120]
[354384515,1740468707339,-400.79576797,0.00055342,120]
[354384516,1740468707349,-3980.64,0.00055342,120]
[354384517,1740468707360,-500.0,0.00055342,120]
[354384518,1740468707369,-500.0,0.00055342,120]
[354384519,1740468707379,-500.0,0.00055342,120]
[354384520,1740468707389,-1130.49,0.00055342,120]
[354384521,1740468707399,-1206.75,0.00055342,120]
[354384522,1740468707409,-500.0,0.00055342,120]
[354384523,1740468707419,-1535.83,0.00055342,120]
[354384524,1740468707428,-1768.01,0.00055342,120]
[354384525,1740468707438,-500.0,0.00055342,120]
[354384526,1740468707448,-1200.87,0.00055342,120]
[354384527,1740468707458,-500.0,0.00055342,120]
[354384528,1740468707467,-500.0,0.00055342,120]
[354384529,1740468707477,-500.0,0.00055342,120]
[354384530,1740468707486,-664.86,0.00055342,120]
[354384531,1740468707497,-696.61,0.00055342,120]
[354384532,1740468707507,-1522.97,0.00055342,120]
[354384533,1740468707518,-500.0,0.00055342,120]
[354384534,1740468707529,-500.0,0.00055342,120]
[354384535,1740468707539,-500.0,0.00055342,120]
[354384536,1740468707554,-500.0,0.00055342,120]
[354384537,1740468707564,-500.0,0.00055342,120]
[354384538,1740468707574,-1319.72,0.00055342,120]
[354384539,1740468707583,-1393.05,0.00055342,120]
[354384540,1740468707594,-894.01,0.00055342,120]
[354384541,1740468707603,-986.38,0.00055342,120]
[354384542,1740468707613,-1886.6,0.00055342,120]
[354384543,1740468707623,-1184.76,0.00055342,120]
[354384544,1740468707633,-500.0,0.00055342,120]
[354384545,1740468707643,-500.0,0.00055342,120]
[354384546,1740468707652,-500.0,0.00055342,120]
[354384547,1740468707662,-2022.2,0.00055342,120]
[354384548,1740468707672,-1099.29,0.00055342,120]
[354384549,1740468707681,-513.22477425,0.00055342,120]
[354384550,1740468707691,-627.38969889,0.00055342,120]
[354384551,1740468707700,-1444.43,0.00055342,120]
[354384552,1740468707710,-500.0,0.00055342,120]
[354384553,1740468707729,-500.0,0.00055342,120]
[354384554,1740468707747,-512.51,0.00055342,120]
[354384555,1740468707767,-517.98,0.00055342,120]
[354384556,1740468707784,-1030.18,0.00055342,120]
[354384557,1740468707805,-500.0,0.00055342,120]
[354384558,1740468707824,-971.18,0.00055342,120]
[354384559,1740468707844,-539.07674765,0.00055342,120]
[354384560,1740468707862,-500.0,0.00055342,120]
[354384561,1740468707881,-1142.3,0.00055342,120]
[354384562,1740468707901,-1194.04,0.00055342,120]
[354384563,1740468707918,-500.0,0.00055342,120]
[354384564,1740468707935,-500.0,0.00055342,120]
[354384565,1740468707951,-500.0,0.00055342,120]
[354384566,1740468707967,-1748.82,0.00055342,120]
[354384567,1740468707984,-679.54,0.00055342,120]
[354384568,1740468708000,-1309.17,0.00055342,120]
[354384569,1740468708016,-500.0,0.00055342,120]
[354384570,1740468708031,-587.74,0.00055342,120]
[354384571,1740468708049,-500.0,0.00055342,120]
[354384572,1740468708065,-778.7,0.00055342,120]
[354384573,1740468708084,-733.26,0.00055342,120]
[354384574,1740468708101,-730.67,0.00055342,120]
[354384575,1740468708120,-519.32494769,0.00055342,120]
[354384576,1740468708137,-598.78,0.00055342,120]
[354384577,1740468708154,-1016.76,0.00055342,120]
[354384578,1740468708172,-343.780273,0.00055342,120]
[354384579,1740468708189,-789.0,0.00055342,120]
[354384580,1740468708206,-500.0,0.00055342,120]
[354384581,1740468708224,-500.0,0.00055342,120]
[354384582,1740468708240,-500.0,0.00055342,120]
[354384583,1740468708256,-500.0,0.00055342,120]
[354384584,1740468708274,-1145.46,0.00055342,120]
[354384585,1740468708291,-500.0,0.00055342,120]
[354384586,1740468708308,-4362.55,0.00055342,120]
[354384587,1740468708326,-500.0,0.00055342,120]
[354384588,1740468708343,-500.0,0.00055342,120]
[354384589,1740468708360,-631.53,0.00055342,120]
[354384590,1740468708377,-500.0,0.00055342,120]
[354384591,1740468708395,-3017.39,0.00055342,120]
[354384592,1740468708411,-500.0,0.00055342,120]
[354384593,1740468708429,-969.91,0.00055342,120]
[354384594,1740468708447,-500.0,0.00055342,120]
[354384595,1740468708464,-759.14,0.00055342,120]
[354384596,1740468708482,-500.0,0.00055342,120]
[354384597,1740468708499,-500.0,0.00055342,120]
[354384598,1740468708517,-335.14931153,0.00055342,120]
[354384599,1740468708535,-500.0,0.00055342,120]
[354384600,1740468708553,-2220.86,0.00055342,120]
[354384601,1740468708571,-152.68095462,0.00055342,120]
[354384602,1740468708587,-318.751745,0.00055342,120]
[354384603,1740468708604,-1553.03,0.00055342,120]
[354384604,1740468708621,-488.35607816,0.00055342,120]
[354384605,1740468708639,-500.0,0.00055342,120]
[354384606,1740468708654,-722.9,0.00055342,120]